bitfinex-derivatives/quotes_ETHF0:USTF0_20250518
["timestamp","ask_amount","ask_price","bid_price","bid_amount"]
[1747577706691,3.99733,2532.4,2531.9,1.8976]
[1747577706692,0.78954,2532.3,2531.9,1.8976]
[1747577706894,5.0886,2532.4,2532.2,0.78954]
[1747577707094,5.0886,2532.4,2531.9,1.8976]
[1747577707295,3.2078,2532.1,2531.6,21.45474]
[1747577707496,0.78973,2531.7,2531.6,10.342]
[1747577707700,0.78972,2531.8,2531.6,11.13176]
[1747577707900,1.97391,2532.3,2531.7,0.78972]
[1747577708098,1.7393,2531.9,2531.7,0.78972]
[1747577708498,0.78965,2532.0,2531.8,0.78967]
[1747577709001,1.7393,2532.2,2531.7,4.35033309]
[1747577709197,3.2078,2532.4,2531.9,4.54801733]
[1747577709399,3.2078,2532.4,2532.0,1.7622]
[1747577709603,0.78956,2532.3,2532.1,0.78959]
[1747577709999,0.78956,2532.3,2532.2,1.8023]
[1747577710198,0.78956,2532.3,2532.2,2.59187]
[1747577710416,3.2078,2532.4,2532.3,0.78954]
[1747577710605,6.14333953,2532.5,2532.4,0.78951]
[1747577710804,6.93283953,2532.5,2532.3,2.65972]
[1747577711005,6.14333953,2532.5,2532.4,0.78951]
[1747577711312,6.14333953,2532.5,2532.4,2.54061]
[1747577711902,0.65334614,2532.5,2532.4,2.54061]
[1747577713006,0.65334614,2532.5,2532.4,7.54061]
[1747577713302,4.18961224,2532.8,2532.7,0.78942]
[1747577714011,3.2078,2532.8,2532.7,4.39822]
[1747577715213,3.2078,2532.8,2532.7,1.7708]
[1747577715403,3.99718,2532.8,2532.7,1.7708]
[1747577715609,3.2078,2532.8,2532.7,2.56022]
[1747577716211,3.99719,2532.8,2532.7,1.7708]
[1747577716401,3.99719,2532.8,2532.7,2.56022]
[1747577716606,3.2078,2532.8,2532.7,2.56022]
[1747577717009,3.2078,2532.8,2532.7,6.71526775]
[1747577717209,0.78937,2532.9,2532.8,0.78938]
[1747577717506,0.78937,2532.9,2532.8,2.64088]
[1747577718015,0.78933,2533.0,2532.9,0.78934]
[1747577718205,1.7444,2533.1,2532.8,1.8515]
[1747577718405,1.7444,2533.1,2533.0,0.78932]
[1747577718707,3.99705,2533.3,2533.1,0.78928]
[1747577718912,5.74505,2533.3,2533.2,1.8515]
[1747577719614,0.7893,2533.1,2532.9,12.86083]
[1747577719807,0.7893,2533.1,2533.0,2.53262]
[1747577720316,0.78928,2533.2,2533.1,0.78929]
[1747577720707,5.74506,2533.3,2533.1,0.78929]
[1747577720906,3.2078,2533.3,2533.2,0.78926]
[1747577721615,4.975,2533.6,2533.3,0.78921]
[1747577721913,0.78917,2533.5,2533.4,1.7433]
[1747577722109,5.76417,2533.6,2533.4,2.53248]
[1747577722412,4.975,2533.6,2533.5,0.78917]
[1747577722611,5.76414,2533.6,2533.5,1.8359]
[1747577722813,4.975,2533.6,2533.5,2.62507]
[1747577723515,3.2078,2533.6,2533.5,2.62507]
[1747577724418,3.2078,2533.6,2533.5,6.93619326]
[1747577725312,3.99694,2533.6,2533.5,22.42816182]
[1747577725516,5.73334,2533.6,2533.5,1.84216182]
[1747577725815,5.73334,2533.6,2533.5,2.63133182]
[1747577727819,3.2078,2533.6,2533.5,2.63133182]
[1747577728423,0.78914,2533.6,2533.5,1.84216182]
[1747577728609,1.8271,2533.7,2533.5,1.84216182]
[1747577728815,0.78914,2533.6,2533.5,2.63131182]
[1747577729318,3.99694,2533.6,2533.5,0.00626182]
[1747577730613,8.99694,2533.6,2533.5,0.00626182]
[1747577731814,0.78931,2533.1,2532.9,14.65652003]
[1747577732016,0.78931,2533.1,2533.0,0.78932]
[1747577732423,2.57621,2533.1,2533.0,0.78932]
[1747577732624,1.7869,2533.1,2532.9,3.59018003]
[1747577732825,2.5762,2533.1,2533.0,0.78932]
[1747577733124,1.7869,2533.1,2533.0,0.78932]
[1747577733325,3.2078,2533.2,2533.1,0.78929]
[1747577733627,3.99706,2533.2,2533.1,0.78929]
[1747577733923,3.99706,2533.2,2533.0,0.78931]
[1747577734126,3.99706,2533.2,2533.1,1.8007]
[1747577734825,3.2078,2533.2,2533.1,2.58999]
[1747577735123,3.2078,2533.2,2533.1,6.87482436]
[1747577735717,0.78922,2533.4,2533.2,0.78923]
[1747577735918,0.78922,2533.4,2533.3,1.7421]
[1747577736829,2.66892,2533.4,2533.3,1.7421]
[1747577737725,2.66892,2533.4,2533.3,2.53133]
[1747577738032,2.66892,2533.4,2533.3,1.7421]
[1747577741748,2.66892,2533.4,2533.3,1.504]
[1747577742545,0.78928,2533.2,2533.1,0.78929]
[1747577742745,0.78925,2533.3,2533.1,0.78929]
[1747577743050,0.78926,2533.2,2533.1,4.17759189]
[1747577743249,0.78924,2533.3,2533.0,1.90018003]
[1747577743548,0.78926,2533.2,2533.1,0.78929]
[1747577743845,0.78929,2533.1,2533.0,1.90018003]
[1747577744053,0.78929,2533.1,2533.0,23.23850003]
[1747577744551,3.99708,2533.2,2533.0,23.23850003]
[1747577744951,3.2078,2533.2,2533.1,0.78929]
[1747577745151,3.2078,2533.2,2533.1,2.58829]
[1747577745951,3.99706,2533.2,2533.1,1.799]
[1747577746151,3.99706,2533.2,2533.1,2.58829]
[1747577746353,3.2078,2533.2,2533.1,2.58829]
[1747577746555,3.99706,2533.2,2533.1,1.799]
[1747577746850,0.78929,2533.1,2533.0,0.09218003]
[1747577747040,3.2078,2533.2,2533.0,0.09218003]
[1747577747249,3.2078,2533.2,2533.1,0.78929]
[1747577748249,3.2078,2533.2,2533.0,2.77328003]
[1747577748446,0.78929,2533.1,2533.0,2.77328003]
[1747577749555,0.78929,2533.1,2533.0,2.6811]
[1747577749750,3.99708,2533.2,2533.1,0.78929]
[1747577750357,5.56149386,2533.2,2533.1,0.78929]
[1747577750549,1.56441386,2533.2,2533.1,0.88147003]
[1747577751149,2.35367386,2533.2,2533.1,0.88147003]
[1747577752147,1.56441386,2533.2,2533.1,0.88147003]
[1747577752555,2.35367386,2533.2,2533.1,0.88147003]
[1747577752755,1.56441386,2533.2,2533.1,0.88147003]
[1747577753252,2.35367386,2533.2,2533.1,0.09218003]
[1747577753460,3.99706,2533.2,2533.1,0.09218003]
[1747577753855,5.82246,2533.2,2533.1,0.09218003]
[1747577755057,5.0332,2533.2,2533.1,0.88147003]
[1747577755257,1.56441386,2533.3,2533.2,0.78926]
[1747577755555,1.56441386,2533.3,2533.2,2.60706]
[1747577755861,1.56441386,2533.3,2533.2,4.41546]
[1747577758864,1.56441386,2533.3,2533.2,14.64046]
[1747577762165,1.56441386,2533.3,2533.2,30.05668397]
[1747577762368,1.56441386,2533.3,2533.2,25.05668397]
[1747577763365,4.77221386,2533.5,2533.4,0.7892]
[1747577763763,2.33899241,2533.7,2533.4,22.61007246]
[1747577763961,4.43988794,2533.9,2533.8,0.78907]
[1747577764162,4.43988794,2533.9,2533.8,14.20887]
[1747577764464,4.43988794,2533.9,2533.8,64.19051859]
[1747577764660,0.21464443,2534.3,2533.9,1.97256]
[1747577764853,0.21464443,2534.3,2534.2,3.99675]
[1747577765266,0.21464443,2534.3,2534.2,13.17579172]
[1747577766466,0.21464443,2534.3,2534.2,8.17579172]
[1747577766865,0.21464443,2534.3,2534.2,15.17399172]
[1747577767060,3.2078,2534.4,2534.0,3.7085]
[1747577767365,1.8104,2534.2,2534.0,24.9415]
[1747577767568,0.78898,2534.1,2534.0,24.9415]
[1747577767767,1.8104,2534.2,2534.1,0.78898]
[1747577768158,3.2078,2534.4,2534.3,0.78892]
[1747577768863,3.2078,2534.4,2534.3,6.79583836]
[1747577769872,1.8012,2534.8,2534.7,0.78879]
[1747577770069,2.58996,2534.8,2534.7,0.78879]
[1747577770264,1.8012,2534.8,2534.3,1.8672]
[1747577770465,0.78888,2534.5,2534.4,0.78889]
[1747577770767,0.78888,2534.5,2534.4,4.4789438]
[1747577770967,0.78889,2534.4,2534.3,23.0881]
[1747577771167,2.72749,2534.4,2534.3,12.8941]
[1747577771369,2.72749,2534.4,2534.3,23.0871]
[1747577771572,1.9386,2534.4,2534.3,23.0871]
[1747577772266,0.78882,2534.6,2534.5,0.78883]
[1747577772466,2.72742,2534.6,2534.4,0.78887]
[1747577772964,2.72742,2534.6,2534.3,1.8672]
[1747577772965,2.72742,2534.6,2534.5,0.78886]
[1747577773472,1.9386,2534.6,2534.5,0.78886]
[1747577774069,0.78874,2534.9,2534.7,0.78876]
[1747577774269,2.62274,2534.9,2534.7,0.78877]
[1747577774574,0.78879,2534.7,2534.6,0.78882]
[1747577774775,1.834,2534.9,2534.6,0.78882]
[1747577774973,0.78877,2534.8,2534.7,0.78879]
[1747577775172,1.834,2534.9,2534.7,0.78879]
[1747577776173,0.78876,2534.8,2534.7,0.78879]
[1747577776568,2.62274,2534.9,2534.8,0.78876]
[1747577777177,0.78876,2534.8,2534.7,0.78878]
[1747577777476,1.9368,2534.8,2534.7,0.78878]
[1747577778778,2.72556,2534.8,2534.7,0.78878]
[1747577778981,1.9368,2534.8,2534.7,0.78878]
[1747577779275,3.2078,2535.0,2534.9,0.78873]
[1747577779875,3.9965,2535.0,2534.9,0.78873]
[1747577780067,2.72548,2535.1,2534.8,1.7808]
[1747577780273,1.9368,2535.1,2535.0,0.7887]
[1747577780977,1.9368,2535.1,2534.9,0.7887]
[1747577781177,0.7887,2535.0,2534.9,0.7887]
[1747577781877,2.72549,2535.1,2534.9,0.7887]
[1747577782065,1.9368,2535.1,2535.0,0.7887]
[1747577782377,0.7887,2535.0,2534.9,0.78872]
[1747577782780,1.9368,2535.1,2534.8,2.56954]
[1747577782974,3.99652,2535.0,2534.8,2.56954]
[1747577783176,2.56483,2534.9,2534.8,2.56954]
[1747577783477,1.7761,2534.9,2534.8,2.56954]
[1747577784078,3.9965,2535.0,2534.9,0.78873]
[1747577784377,3.2078,2535.0,2534.9,2.59543]
[1747577784874,4.989,2535.0,2534.9,2.59543]
[1747577785075,5.7777,2535.0,2534.9,2.59543]
[1747577785681,4.989,2535.0,2534.9,2.59543]
[1747577786074,5.7777,2535.0,2534.9,2.59543]
[1747577786475,0.78876,2534.8,2534.7,0.09218003]
[1747577788378,0.78895,2534.2,2534.1,1.7867]
[1747577788580,3.2078,2534.4,2534.1,1.7867]
[1747577788769,1.8102,2534.3,2534.1,1.7867]
[1747577788975,1.8102,2534.3,2534.2,0.78895]
[1747577789481,2.59913,2534.3,2534.1,4.36416]
[1747577789783,0.78895,2534.2,2534.1,4.36417]
[1747577789976,1.8499,2534.2,2533.9,0.78902]
[1747577790176,2.63887,2534.2,2534.0,0.789]
[1747577790381,0.789,2534.1,2534.0,4.32794998]
[1747577790680,1.8499,2534.1,2533.9,1.7632]
[1747577790879,1.8499,2534.1,2534.0,0.78901]
[1747577791078,5.80829,2534.4,2534.2,0.78893]
[1747577791281,5.0194,2534.4,2534.3,0.78892]
[1747577791484,5.80829,2534.4,2534.3,0.78892]
[1747577791676,0.78892,2534.3,2534.1,2.55216]
[1747577792486,2.0607,2534.2,2534.1,2.55216]
[1747577793778,3.9967,2534.4,2534.1,1.7632]
[1747577793980,2.0607,2534.3,2534.2,2.086]
[1747577794179,2.84962,2534.3,2534.2,2.086]
[1747577794380,2.0607,2534.3,2534.2,2.87495]
[1747577795096,2.84962,2534.3,2534.2,2.87495]
[1747577795583,2.0607,2534.3,2534.2,2.87495]
[1747577795890,3.2078,2534.4,2534.3,0.78892]
[1747577796088,3.2078,2534.4,2534.3,2.85212]
[1747577796779,2.34865938,2534.6,2534.5,0.78886]
[1747577796975,2.34865938,2534.6,2534.5,24.29466]
[1747577797182,3.2078,2535.2,2534.8,0.78876]
[1747577797382,3.99646,2535.2,2534.8,0.78876]
[1747577797685,3.2078,2535.2,2534.8,5.09587107]
[1747577797889,3.91991199,2534.9,2534.8,25.39087107]
[1747577798085,0.78873,2534.9,2534.8,25.39087107]
[1747577798283,0.78873,2534.9,2534.8,26.66531107]
[1747577798485,0.78873,2534.9,2534.8,27.45407107]
[1747577799089,0.78873,2534.9,2534.8,2.0632]
[1747577799289,0.78879,2534.8,2534.6,6.64481]
[1747577799590,0.78879,2534.7,2534.6,26.93682]
[1747577800089,1.9691,2534.8,2534.6,26.148]
[1747577800596,2.75788,2534.8,2534.6,16.81282]
[1747577800892,0.78879,2534.7,2534.6,10.95682]
[1747577801190,1.9691,2534.7,2534.6,13.00492]
[1747577802391,2.75789,2534.7,2534.6,2.0481]
[1747577802581,3.94113,2534.7,2534.2,2.0351]
[1747577802789,0.78895,2534.2,2534.1,2.08848003]
[1747577802981,3.2078,2534.2,2534.1,2.87746003]
[1747577803690,1.9959,2534.4,2534.3,0.78892]
[1747577804286,3.2078,2534.5,2534.4,0.78889]
[1747577804683,5.99245,2534.9,2534.7,0.78878]
[1747577804888,3.2078,2534.9,2534.8,0.78876]
[1747577805092,3.13118199,2535.1,2535.0,0.7887]
[1747577805288,3.91986199,2535.1,2534.9,0.78871]
[1747577805786,0.78873,2534.9,2534.8,2.0181]
[1747577806489,2.039,2534.9,2534.5,0.78884]
[1747577806694,0.78876,2534.8,2534.6,0.78881]
[1747577806896,2.82775,2534.9,2534.7,0.78878]
[1747577807193,2.039,2534.9,2534.8,0.78876]
[1747577807387,3.2078,2535.0,2534.6,2.0181]
[1747577807595,3.2078,2535.0,2534.9,0.78873]
[1747577808292,3.9965,2535.0,2534.9,0.78873]
[1747577808494,3.9965,2535.0,2534.8,2.76384]
[1747577808897,0.78873,2534.9,2534.8,1.9751]
[1747577809091,3.99652,2535.0,2534.8,2.76386]
[1747577809287,3.2078,2535.0,2534.9,0.78873]
[1747577809495,3.2078,2535.0,2534.9,5.17539038]
[1747577810095,3.2078,2535.0,2534.9,4.38666038]
[1747577810285,3.2078,2535.0,2534.9,21.05173]
[1747577810491,3.2078,2535.0,2534.9,21.14391003]
[1747577810696,3.2078,2535.0,2534.9,25.31502192]
[1747577810998,3.2078,2535.3,2534.9,24.52629192]
[1747577811298,0.78864,2535.2,2535.1,0.78866]
[1747577811498,3.99643,2535.3,2535.1,0.78866]
[1747577811702,3.99643,2535.3,2535.2,0.78864]
[1747577811888,0.78864,2535.2,2535.1,0.78865]
[1747577812093,5.96303,2535.3,2535.2,0.78864]
[1747577812495,5.96303,2535.3,2535.2,2.72014]
[1747577812696,3.2078,2535.3,2535.2,2.72014]
[1747577813493,0.78855,2535.5,2535.4,0.78856]
[1747577813997,2.84275,2535.5,2535.4,0.78856]
[1747577814192,0.78858,2535.4,2535.2,1.9315]
[1747577814388,3.2078,2535.3,2535.2,0.78863]
[1747577814594,0.78856,2535.5,2535.4,0.78857]
[1747577814794,0.78856,2535.5,2535.4,2.76167]
[1747577814994,3.99633,2535.6,2535.4,2.76167]
[1747577815395,3.2078,2535.6,2535.5,0.78854]
[1747577817299,5.3131,2535.6,2535.4,2.76165]
[1747577817600,5.3131,2535.6,2535.5,0.78854]
[1747577817797,5.3131,2535.6,2535.0,1.9441]
[1747577818095,5.3131,2535.6,2535.5,0.78854]
[1747577818398,3.2078,2535.6,2535.5,0.78854]
[1747577818701,3.2078,2535.6,2535.5,5.06153871]
[1747577819202,3.99631,2535.6,2535.5,4.27299871]
[1747577819401,2.89381,2535.6,2535.5,14.34399871]
[1747577819598,2.1053,2535.6,2535.5,15.13253871]
[1747577819799,2.89381,2535.6,2535.5,16.33179871]
[1747577819996,2.89381,2535.6,2535.5,4.27299871]
[1747577820195,2.89381,2535.6,2535.5,15.13053871]
[1747577820196,2.1053,2535.6,2535.5,15.13053871]
[1747577820402,0.78847,2535.8,2535.6,0.78849]
[1747577820598,2.86387,2535.8,2535.6,0.78849]
[1747577820801,2.0754,2535.8,2535.7,0.78848]
[1747577821495,2.86388,2535.8,2535.6,0.7885]
[1747577821692,2.86388,2535.8,2535.6,0.78849]
[1747577822203,2.0754,2535.8,2535.5,20.97212871]
[1747577822401,0.78851,2535.6,2535.5,20.97212871]
[1747577822705,0.78851,2535.6,2535.5,6.26079871]
[1747577822910,0.78851,2535.6,2535.5,16.32279871]
[1747577823905,3.99631,2535.6,2535.5,16.32279871]
[1747577824206,3.2078,2535.6,2535.5,17.11133871]
[1747577824401,3.99631,2535.6,2535.5,17.11133871]
[1747577824706,3.2078,2535.6,2535.5,17.20351874]
[1747577825394,2.0754,2535.8,2535.7,0.78848]
[1747577825607,3.2078,2535.9,2535.8,0.78845]
[1747577825904,3.99624,2535.9,2535.8,4.403937]
[1747577826299,3.99624,2535.9,2535.8,1.9137]
[1747577826501,0.78848,2535.7,2535.5,0.09218003]
[1747577826697,0.78848,2535.7,2535.6,10.052]
[1747577826904,0.78851,2535.6,2535.5,1.9137]
[1747577827206,0.78851,2535.6,2535.5,22.0547]
[1747577827816,0.78851,2535.6,2535.5,22.14688003]
[1747577828108,0.78851,2535.6,2535.5,22.93541003]
[1747577828308,1.9435,2535.8,2535.6,0.7885]
[1747577828509,1.9435,2535.8,2535.5,22.93540003]
[1747577828706,0.78851,2535.6,2535.5,22.93540003]
[1747577829609,0.78848,2535.7,2535.5,22.14688003]
[1747577829908,1.9435,2535.8,2535.5,22.14688003]
[1747577829909,1.9435,2535.8,2535.6,0.78849]
[1747577830207,0.78848,2535.7,2535.6,0.78849]
[1747577831307,0.78851,2535.6,2535.5,22.14688003]
[1747577831609,0.78851,2535.6,2535.5,22.92342003]
[1747577831812,0.78859,2535.4,2535.2,2.0333]
[1747577832012,0.78861,2535.4,2535.2,4.80841]
[1747577832308,0.78858,2535.4,2535.3,4.10318052]
[1747577832505,3.2078,2535.6,2535.1,0.78866]
[1747577832810,3.99643,2535.3,2535.1,4.15492826]
[1747577833009,3.2078,2535.6,2535.2,0.78864]
[1747577833406,3.2078,2535.6,2535.1,1.9865]
[1747577833611,0.78864,2535.2,2535.1,2.77516]
[1747577834108,0.78864,2535.2,2535.1,1.7486]
[1747577834312,0.7887,2535.0,2534.9,10.09]
[1747577834513,0.7887,2535.0,2534.9,20.121]
[1747577834713,0.7887,2535.0,2534.9,24.33307946]
[1747577834912,0.7887,2535.0,2534.9,25.12179946]
[1747577835413,0.78869,2535.1,2534.9,25.12179946]
[1747577836816,0.78869,2535.1,2535.0,0.7887]
[1747577838116,0.7887,2535.0,2534.9,25.12178946]
[1747577838414,0.7887,2535.0,2534.9,4.21207946]
[1747577838617,0.78879,2534.7,2534.6,3.99662]
[1747577838817,1.97171,2535.1,2534.6,3.99662]
[1747577838818,3.88171,2535.1,2534.6,3.99662]
[1747577839111,0.78876,2534.8,2534.7,4.2092295]
[1747577839317,0.78886,2534.5,2534.4,11.16881342]
[1747577839912,0.78886,2534.5,2534.4,1.14981342]
[1747577840820,2.69886,2534.5,2534.4,1.14981342]
[1747577842319,1.91,2534.5,2534.2,0.099]
[1747577842521,3.99672,2534.3,2534.2,0.099]
[1747577843919,3.2078,2534.3,2534.2,0.099]
[1747577844423,3.99672,2534.3,2534.2,0.099]
[1747577846813,8.2078,2534.3,2533.2,1.14981342]
[1747577847017,5.18043,2533.9,2533.4,0.7892]
[1747577847220,1.9787,2533.8,2533.3,6.50098218]
[1747577847718,0.78916,2533.6,2533.4,0.7892]
[1747577847912,1.9787,2533.8,2533.4,2.1045]
[1747577848120,0.78917,2533.6,2533.4,2.8937]
[1747577848428,0.78917,2533.5,2533.4,2.8937]
[1747577848722,0.78917,2533.5,2533.4,2.1045]
[1747577850227,2.89007,2533.5,2533.4,2.8937]
[1747577850528,2.89007,2533.5,2533.4,2.1045]
[1747577851024,1.9787,2533.8,2533.4,2.1045]
[1747577851228,5.3049,2534.2,2533.5,3.2078]
[1747577851430,3.2078,2534.2,2534.1,0.78898]
[1747577851723,2.1009,2534.4,2533.9,9.991]
[1747577851915,0.78898,2534.1,2534.0,2.0015]
[1747577852225,0.78911,2533.7,2533.6,12.0342]
[1747577852731,0.78911,2533.7,2533.6,4.0457]
[1747577853616,2.87291,2533.7,2533.6,4.0457]
[1747577854227,2.87291,2533.7,2533.6,4.13788003]
[1747577856524,2.87291,2533.7,2533.2,0.78925]
[1747577856525,0.78922,2533.4,2533.2,0.78925]
[1747577856830,0.78926,2533.2,2533.1,4.1824]
[1747577859431,0.78932,2533.0,2532.9,2.72614]
[1747577859630,2.0265,2533.1,2533.0,0.78932]
[1747577859835,2.81579,2533.1,2533.0,1.9863]
[1747577860534,2.81579,2533.1,2533.0,2.77562]
[1747577862526,2.0265,2533.1,2533.0,2.77562]
[1747577863136,2.81579,2533.1,2533.0,1.9863]
[1747577865122,2.81579,2533.1,2532.9,1.9368]
[1747577865123,0.78935,2532.9,2532.8,1.9372]
[1747577865336,0.78942,2532.7,2532.6,3.99722]
[1747577865529,0.7894,2532.8,2532.6,6.11722]
[1747577865733,0.7894,2532.8,2532.7,2.12]
[1747577866034,0.7894,2532.8,2532.7,2.90942]
[1747577866232,1.97332,2533.0,2532.5,0.78946]
[1747577866536,0.78946,2532.6,2532.5,0.78947]
[1747577866937,0.78946,2532.6,2532.4,0.78949]
[1747577867232,0.78948,2532.5,2532.4,0.78949]
[1747577867536,0.78946,2532.6,2532.5,0.78947]
[1747577867728,0.7894,2532.8,2532.3,3.9248]
[1747577867930,0.7894,2532.8,2532.7,0.78942]
[1747577868129,0.78942,2532.7,2532.6,0.78943]
[1747577868835,0.78948,2532.6,2532.3,3.9248]
[1747577869133,0.78948,2532.6,2532.5,0.78948]
[1747577870230,0.7895,2532.5,2532.4,0.78951]
[1747577870430,0.78951,2532.4,2532.3,4.71433]
[1747577870632,0.78951,2532.4,2532.3,3.9248]
[1747577870822,0.78951,2532.4,2532.3,4.71434]
[1747577871137,2.8172,2532.5,2532.3,4.71434]
[1747577871336,0.78951,2532.4,2532.3,4.71434]
[1747577871930,0.78951,2532.4,2532.3,3.9248]
[1747577872129,0.78948,2532.5,2532.3,3.9248]
[1747577872323,0.78946,2532.6,2532.5,0.78946]
[1747577873029,0.7895,2532.5,2532.4,0.7895]
[1747577873642,0.78947,2532.6,2532.5,0.78948]
[1747577873934,3.2078,2532.9,2532.8,0.78939]
[1747577874738,0.78922,2533.4,2533.3,0.78922]
[1747577874937,6.33898199,2533.6,2533.1,9.934]
[1747577875238,5.2665,2533.6,2533.1,9.934]
[1747577875434,5.2665,2533.6,2533.0,4.49103517]
[1747577875631,0.78929,2533.1,2533.0,0.78931]
[1747577875832,0.78932,2533.0,2532.9,4.0256]
[1747577876428,0.78931,2533.1,2532.9,4.0256]
[1747577876741,0.78931,2533.1,2533.0,0.78932]
[1747577876942,0.78932,2533.0,2532.9,4.81493]
[1747577878036,0.78932,2533.0,2532.9,4.81495]
[1747577878339,0.78932,2533.0,2532.9,4.0256]
[1747577878537,0.78932,2533.0,2532.9,1.984]
[1747577878738,0.78931,2533.1,2532.9,1.984]
[1747577878944,2.0587,2533.2,2532.9,2.77334]
[1747577879244,2.0587,2533.2,2532.3,1.55186123]
[1747577879245,5.18104,2533.1,2532.3,1.55186123]
[1747577879541,0.78941,2532.8,2532.6,0.78944]
[1747577879841,1.9985,2533.0,2532.6,0.78944]
[1747577880042,0.78941,2532.8,2532.6,0.78944]
[1747577880242,0.78938,2532.9,2532.7,2.85292]
[1747577880539,1.9985,2533.0,2532.8,2.0635]
[1747577880844,3.2078,2533.4,2532.8,6.28513401]
[1747577881039,3.2078,2533.4,2533.3,0.78923]
[1747577881243,3.997,2533.4,2532.9,1.97339]
[1747577881439,3.2078,2533.4,2533.3,0.78923]
[1747577883135,3.997,2533.4,2533.3,0.78923]
[1747577884447,3.99702,2533.4,2533.3,0.78923]
[1747577884643,0.78923,2533.3,2533.2,12.66255]
[1747577884944,3.2078,2533.4,2533.2,12.66255]
[1747577884945,3.99702,2533.4,2533.2,12.66255]
[1747577885145,3.99702,2533.4,2533.3,2.0578]
[1747577885647,3.99702,2533.4,2533.3,2.84703]
[1747577886241,0.65566959,2533.7,2533.6,0.78914]
[1747577886942,0.65566959,2533.7,2533.6,3.99694]
[1747577887149,0.65566959,2533.7,2533.6,18.47760178]
[1747577887343,0.65566959,2533.7,2533.6,23.47760178]
[1747577887940,0.65566959,2534.1,2533.6,45.34066178]
[1747577888139,0.78905,2533.9,2533.8,0.78906]
[1747577888338,0.78905,2533.9,2533.8,2.87056]
[1747577888539,0.78905,2533.9,2533.8,2.0815]
[1747577889034,0.78905,2533.9,2533.8,2.87057]
[1747577889241,0.78905,2533.9,2533.8,2.0815]
[1747577889842,0.78905,2533.9,2533.8,2.87057]
[1747577890047,5.92486959,2534.1,2534.0,0.78901]
[1747577890347,3.86346959,2534.1,2534.0,0.78901]
[1747577890550,0.65566959,2534.1,2534.0,0.78901]
[1747577890845,0.56348956,2534.1,2534.0,15.1496655]
[1747577891047,0.56348956,2534.1,2534.0,19.2033655]
[1747577893445,0.98414453,2534.3,2534.2,0.78895]
[1747577893650,0.78886,2534.5,2534.3,0.78892]
[1747577893949,0.78886,2534.5,2534.4,2.76689]
[1747577894541,2.73264,2534.6,2534.4,2.76689]
[1747577894846,2.73264,2534.6,2534.5,0.78886]
[1747577895048,2.73264,2534.6,2534.5,1.978]
[1747577895448,2.73264,2534.6,2534.5,2.76686]
[1747577895847,2.73264,2534.6,2534.5,1.978]
[1747577896056,0.98414453,2534.7,2534.6,0.78882]
[1747577896549,0.98414453,2534.7,2534.6,2.74462]
[1747577898652,0.78878,2534.8,2534.6,1.9558]
[1747577898853,2.79915,2534.9,2534.8,0.78876]
[1747577900254,2.0104,2534.9,2534.8,0.78876]
[1747577900553,2.79913,2534.9,2534.8,0.78876]
[1747577901150,2.0104,2534.9,2534.8,0.78876]
[1747577901345,2.79913,2534.9,2534.8,0.78876]
[1747577901548,2.0104,2534.9,2534.8,0.78876]
[1747577902052,2.79913,2534.9,2534.8,0.78876]
[1747577902248,3.2078,2535.1,2534.9,0.78873]
[1747577902454,5.02013453,2535.4,2535.0,9.855]
[1747577902455,4.19194453,2535.4,2535.0,9.855]
[1747577902753,0.98414453,2535.4,2535.3,0.78861]
[1747577902948,4.15457276,2535.6,2535.1,3.2078]
[1747577902949,2.84393,2535.6,2535.5,0.78854]
[1747577903253,2.0554,2535.6,2535.5,0.78854]
[1747577903753,2.84391,2535.6,2535.5,0.78854]
[1747577904352,0.78855,2535.5,2535.4,0.78855]
[1747577906054,0.7886,2535.4,2535.3,10.63159]
[1747577906257,2.9044,2535.4,2535.3,12.64909]
[1747577906558,2.9044,2535.4,2535.3,17.17718832]
[1747577906956,2.1158,2535.4,2535.3,17.17718832]
[1747577907359,2.90438,2535.4,2535.3,17.17718832]
[1747577907658,2.1158,2535.4,2535.3,17.17718832]
[1747577908350,2.90438,2535.4,2535.3,17.17718832]
[1747577908551,2.90438,2535.4,2535.3,6.54559832]
[1747577908761,2.90438,2535.4,2535.3,2.0175]
[1747577909657,0.78861,2535.3,2535.1,46.84155]
[1747577909850,2.73731,2535.3,2535.2,0.78864]
[1747577910353,1.9487,2535.3,2535.1,68.61425]
[1747577910549,0.78864,2535.2,2535.1,68.61425]
[1747577910753,2.73732,2535.3,2535.2,0.78864]
[1747577912855,0.78864,2535.2,2535.1,48.93125]
[1747577913063,0.78864,2535.2,2535.1,58.75425]
[1747577913453,5.1565,2535.3,2535.0,0.78868]
[1747577913648,2.141,2535.1,2535.0,0.78868]
[1747577913853,3.99642,2535.3,2535.2,0.78864]
[1747577915462,3.2078,2535.3,2535.2,0.78864]
[1747577915857,3.99641,2535.3,2535.2,0.78864]
[1747577916357,3.2078,2535.3,2535.2,0.78864]
[1747577916861,3.99641,2535.3,2535.2,0.78864]
[1747577917062,5.95941,2535.3,2535.2,0.58074]
[1747577917262,5.1708,2535.3,2535.2,0.58074]
[1747577917566,5.95941,2535.3,2535.2,0.58074]
[1747577917860,5.1708,2535.3,2535.2,0.58074]
[1747577918251,0.78866,2535.2,2535.1,0.78865]
[1747577918458,7.2542,2535.6,2535.0,22.8668]
[1747577918759,7.3866,2535.6,2535.5,0.78854]
[1747577919264,5.3483,2535.6,2535.5,0.78854]
[1747577922161,3.2078,2535.6,2535.5,0.78854]
[1747577922368,0.7885,2535.7,2535.6,0.78849]
[1747577922666,2.8894,2535.7,2535.6,0.78849]
[1747577924168,2.1009,2535.7,2535.6,0.78849]